bitfinex/quotes_ETHUSD_20250505
["timestamp","ask_amount","ask_price","bid_price","bid_amount"]
[1746418153369,0.29060893,1800.9,1800.5,4.628]
[1746418153574,0.29060893,1800.9,1800.6,0.05553053]
[1746418155562,0.29060893,1800.9,1800.6,0.84413053]
[1746418158330,0.29060893,1800.9,1800.6,0.7886]
[1746418160359,0.29060893,1800.9,1800.6,1.33026]
[1746418161574,0.29060893,1800.9,1800.6,0.54166]
[1746418161873,1.04110893,1800.9,1800.5,9.30279885]
[1746418162678,0.7538,1800.8,1800.5,9.30279885]
[1746418163337,0.7987,1800.6,1800.5,9.30279885]
[1746418163561,0.7987,1800.6,1800.5,4.67479885]
[1746418166739,0.7987,1800.6,1800.2,4.617]
[1746418166943,0.7987,1800.6,1800.2,5.1583]
[1746418167292,0.7987,1800.6,1800.3,0.05553971]
[1746418167483,0.7987,1800.6,1800.2,5.1583]
[1746418172298,0.7885,1800.4,1800.2,4.617]
[1746418172657,0.7885,1800.4,1799.9,5.4422]
[1746418172976,0.7885,1800.4,1799.9,4.617]
[1746418174099,0.7885,1800.4,1799.9,4.67355241]
[1746418178514,0.7885,1800.4,1799.9,7.05462765]
[1746418178715,0.29065649,1800.3,1799.9,7.05462765]
[1746418181474,0.29065649,1800.3,1799.9,4.67355241]
[1746418186884,0.7744,1800.2,1799.9,4.67355241]
[1746418187714,0.7744,1800.2,1799.9,4.618]
[1746418188918,0.7744,1800.2,1800.0,0.05554956]
[1746418191122,0.29065649,1800.3,1800.0,0.05554956]
[1746418191418,0.29065649,1800.3,1800.0,1.78003628]
[1746418193218,0.29065649,1800.3,1800.0,6.45483513]
[1746418202144,0.29065649,1800.3,1800.1,0.05554248]
[1746418202311,0.29065649,1800.3,1800.0,6.45483513]
[1746418202507,0.29065649,1800.3,1800.0,12.01036088]
[1746418202710,0.29065649,1800.3,1800.1,1.20103609]
[1746418203348,0.29065649,1800.3,1800.2,0.05554028]
[1746418205749,0.29065649,1800.3,1800.1,1.20103609]
[1746418206739,0.29065649,1800.3,1800.2,0.0555392]
[1746418208353,0.29065649,1800.3,1800.1,6.7560825]
[1746418208656,0.29065649,1800.3,1800.2,0.67560825]
[1746418208827,0.29065649,1800.3,1800.1,1.20103609]
[1746418210652,0.29065649,1800.3,1800.1,6.75627543]
[1746418211262,0.29065649,1800.3,1800.2,0.05553964]
[1746418213848,0.29065649,1800.3,1800.1,1.20103609]
[1746418216156,1.05255649,1800.3,1800.1,1.20103609]
[1746418216373,1.05255649,1800.3,1800.0,10.30173513]
[1746418216936,1.05255649,1800.3,1800.0,9.27879885]
[1746418217171,0.7619,1800.2,1800.0,9.27879885]
[1746418219565,0.7619,1800.2,1800.0,4.604]
[1746418223343,2.4266777,1800.2,1800.0,4.604]
[1746418223571,0.7622,1800.1,1799.7,9.27979885]
[1746418223875,0.7622,1800.0,1799.7,4.605]
[1746418224244,1.05283509,1800.0,1799.7,4.605]
[1746418224446,0.7622,1799.9,1799.7,4.605]
[1746418225371,3.0,1799.9,1799.4,8.35738702]
[1746418225670,0.7622,1799.8,1799.4,8.35738702]
[1746418226346,1.13842,1799.8,1799.4,8.35738702]
[1746418226773,1.13842,1799.8,1799.4,3.75138702]
[1746418226944,0.7622,1799.7,1799.2,4.67479885]
[1746418227278,0.7622,1799.7,1799.2,0.05557296]
[1746418227463,1.04251977,1799.7,1799.2,0.05557296]
[1746418227682,0.8315,1799.6,1799.2,0.05557296]
[1746418228476,0.8315,1799.6,1799.1,3.75138702]
[1746418228682,0.8315,1799.6,1799.2,0.05557419]
[1746418228973,0.8315,1799.6,1799.1,3.75138702]
[1746418230291,0.8315,1799.6,1799.1,3.80696305]
[1746418230486,0.8315,1799.6,1799.1,3.75138702]
[1746418230689,0.8315,1799.6,1799.1,5.44398164]
[1746418231208,2.4962777,1799.6,1799.1,3.80696305]
[1746418231381,0.8141,1799.5,1799.1,3.75138702]
[1746418231781,0.8141,1799.5,1799.1,3.80696305]
[1746418232300,0.8141,1799.5,1799.0,4.67479885]
[1746418232905,0.8141,1799.5,1799.1,0.05557604]
[1746418233503,0.8141,1799.5,1799.0,4.67479885]
[1746418235101,0.7803,1799.4,1799.0,4.67479885]
[1746418235310,0.7803,1799.3,1799.0,4.67479885]
[1746418235468,0.7803,1799.3,1798.8,4.606]
[1746418235666,0.7803,1799.3,1798.8,5.61295989]
[1746418235905,0.7803,1799.3,1798.8,4.606]
[1746418236465,2.4450777,1799.2,1798.8,4.606]
[1746418236762,0.7803,1799.1,1798.7,4.607]
[1746418237009,1.20442979,1799.1,1798.7,4.607]
[1746418237200,0.7803,1799.0,1798.7,4.607]
[1746418239584,0.29070325,1798.9,1798.7,4.607]
[1746418242633,0.29070325,1798.9,1798.8,0.10680632]
[1746418242934,0.29070325,1798.9,1798.8,0.16239481]
[1746418243140,0.29070325,1798.9,1798.8,0.63933429]
[1746418243913,0.29070325,1798.9,1798.8,6.19859602]
[1746418244099,0.8319,1799.2,1798.8,12.51694986]
[1746418244299,0.29067943,1799.1,1798.8,6.95772484]
[1746418244494,0.29067943,1799.1,1798.9,5.55889962]
[1746418244711,0.29067943,1799.1,1799.0,0.7339409]
[1746418246841,0.29067943,1799.1,1799.0,0.12247435]
[1746418247220,0.29067943,1799.1,1798.9,5.55894619]
[1746418247533,0.29067943,1799.1,1799.0,0.12247435]
[1746418247947,0.29067943,1799.1,1798.8,11.52579032]
[1746418248108,0.29067943,1799.1,1798.9,0.12247435]
[1746418248305,0.29067943,1799.1,1798.9,1.28730082]
[1746418249060,0.29067943,1799.1,1798.9,0.12247435]
[1746418249061,0.8321,1799.0,1798.9,0.12247435]
[1746418250341,0.8321,1799.0,1798.9,0.17805763]
[1746418250531,0.29067943,1799.1,1798.9,0.17805763]
[1746418250733,0.29067943,1799.1,1798.9,0.12247435]
[1746418258149,0.29067943,1799.1,1798.7,4.608]
[1746418258452,0.29067943,1799.1,1798.8,0.12168989]
[1746418260152,0.29067943,1799.1,1798.9,5.61439605]
[1746418260337,7.39862631,1799.6,1799.0,0.9012612]
[1746418260338,6.9732,1799.6,1799.0,0.9012612]
[1746418260545,0.8332,1799.6,1799.1,0.05556945]
[1746418260717,0.29069055,1799.4,1799.1,1.11900941]
[1746418261064,0.29069055,1799.4,1799.2,0.12054903]
[1746418261359,0.29069055,1799.4,1799.2,0.05557075]
[1746418261566,0.29069055,1799.4,1799.3,0.12054903]
[1746418263964,0.29069055,1799.4,1799.1,4.616]
[1746418264141,0.29069055,1799.4,1799.2,0.12054903]
[1746418264348,0.29069055,1799.4,1799.2,0.4736549]
[1746418264544,0.29069055,1799.4,1799.3,0.12054903]
[1746418266668,0.29069055,1799.4,1799.2,0.05557356]
[1746418266856,0.29069055,1799.4,1799.3,0.11684181]
[1746418268576,0.29069055,1799.4,1799.1,4.616]
[1746418268773,0.29069055,1799.4,1799.2,0.57858437]
[1746418268986,0.29069055,1799.4,1799.3,0.81867151]
[1746418269158,0.29069055,1799.4,1799.3,0.7631]
[1746418269359,0.29069055,1799.4,1799.3,0.87979925]
[1746418272387,0.29069055,1799.4,1799.3,5.5545981]
[1746418272686,0.29069055,1799.4,1799.3,6.15621791]
[1746418272885,0.29069055,1799.4,1799.3,6.23378373]
[1746418273185,0.29069055,1799.4,1799.3,11.79150061]
[1746418273348,0.29069055,1799.4,1799.3,11.73593479]
[1746418273555,0.7627,1799.9,1799.4,0.7851]
[1746418273769,0.29066288,1799.6,1799.5,4.78669085]
[1746418273980,0.7627,1799.9,1799.5,4.78669085]
[1746418274383,0.29066093,1799.6,1799.5,4.78669085]
[1746418274584,0.7627,1799.9,1799.5,4.78669085]
[1746418274885,0.29066187,1799.6,1799.5,4.78669085]
[1746418275062,0.7627,1799.9,1799.5,5.46122928]
[1746418275447,0.29066068,1799.6,1799.5,5.46122928]
[1746418275648,0.7627,1799.9,1799.5,5.46122928]
[1746418275887,0.2906617,1799.6,1799.5,5.46122928]
[1746418276188,0.7627,1799.9,1799.5,5.46122928]
[1746418276390,0.7627,1799.9,1799.6,0.54612293]
[1746418276591,0.7627,1799.9,1799.7,0.11584396]
[1746418276790,0.29066281,1799.8,1799.6,0.54612293]
[1746418276999,0.29066281,1799.8,1799.7,0.11584396]
[1746418277363,0.29066281,1799.8,1799.6,0.54612293]
[1746418277683,0.29066281,1799.8,1799.7,0.11584396]
[1746418277995,0.29066281,1799.8,1799.6,0.54612293]
[1746418278195,0.29066281,1799.8,1799.7,0.11584396]
[1746418278697,0.29066281,1799.8,1799.5,4.615]
[1746418278997,1.6647777,1799.7,1799.6,0.11391963]
[1746418279463,2.4279777,1799.7,1799.6,0.11391963]
[1746418279659,2.4279777,1799.7,1799.3,4.67479885]
[1746418279966,2.4279777,1799.7,1799.3,5.65934951]
[1746418280308,0.29066281,1799.8,1799.4,0.89482076]
[1746418280464,0.29066281,1799.8,1799.5,0.05556076]
[1746418280869,0.29066281,1799.8,1799.6,0.8224]
[1746418281097,0.29066281,1799.8,1799.6,0.93582076]
[1746418286419,0.29066281,1799.8,1799.6,0.11342076]
[1746418289523,0.29066281,1799.8,1799.7,0.7735]
[1746418289691,0.29066281,1799.8,1799.7,0.88670701]
[1746418290021,0.29066281,1799.8,1799.7,0.11320701]
[1746418290401,0.29066281,1799.8,1799.5,0.7735]
[1746418290586,0.29066281,1799.8,1799.7,0.11320701]
[1746418290787,0.29066281,1799.8,1799.5,1.87405367]
[1746418290983,0.29066281,1799.8,1799.6,0.11320701]
[1746418293901,0.29066281,1799.8,1799.7,6.36603811]
[1746418294105,0.29066281,1799.8,1799.7,6.47831876]
[1746418294332,0.29066281,1799.8,1799.7,8.1436142]
[1746418296734,0.7761,1800.3,1799.8,5.55616155]
[1746418296900,0.7761,1800.3,1799.9,0.05555032]
[1746418297234,0.29065168,1800.1,1800.0,0.11228065]
[1746418300640,0.7761,1800.8,1800.1,0.754]
[1746418300934,1.6647777,1800.7,1800.2,0.16361982]
[1746418301122,0.29061217,1800.5,1800.2,0.16361982]
[1746418301417,1.6647777,1800.7,1800.2,0.16361982]
[1746418301622,0.29061116,1800.5,1800.2,0.16361982]
[1746418303036,1.07691116,1800.5,1800.2,0.16361982]
[1746418305116,0.29061116,1800.5,1800.2,0.16361982]
[1746418305822,0.29061116,1800.5,1800.3,0.7613]
[1746418306007,3.0,1800.9,1800.3,6.31589585]
[1746418306008,0.7863,1800.9,1800.3,6.31589585]
[1746418306210,0.7863,1800.9,1800.4,4.617]
[1746418306409,0.29055474,1800.8,1800.5,0.10807717]
[1746418306958,0.29055474,1800.8,1800.6,0.7613]
[1746418307111,0.29055474,1800.8,1800.6,5.43609885]
[1746418307456,0.29055474,1800.8,1800.7,0.54360988]
[1746418307618,0.29055474,1800.8,1800.7,0.6475569]
[1746418308241,0.7863,1801.1,1800.7,0.6475569]
[1746418308423,1.07681345,1801.1,1800.7,0.6475569]
[1746418309942,0.29051345,1801.1,1800.7,6.20093157]
[1746418310242,0.29051345,1801.1,1800.8,0.62009316]
[1746418310410,0.29051345,1801.1,1800.8,5.23609316]
[1746418310811,0.29051345,1801.1,1800.9,0.10394702]
[1746418312743,0.29051345,1801.1,1800.8,5.23609316]
[1746418317957,0.29051345,1801.1,1800.9,0.0555205]
[1746418318119,0.29051345,1801.1,1800.9,0.58468187]
[1746418319325,0.29051345,1801.1,1801.0,0.7748]
[1746418319524,0.8121,1801.8,1801.1,0.7748]
[1746418319736,0.8121,1801.8,1801.2,4.67451141]
[1746418319951,1.6647777,1801.7,1801.2,4.67451141]
[1746418320238,1.6647777,1801.7,1801.3,0.46745114]
[1746418323440,2.07337864,1801.7,1801.3,0.46745114]
[1746418331757,2.07337864,1801.7,1801.4,0.7914]
[1746418331758,0.40860094,1801.7,1801.4,0.7914]
[1746418331960,0.29043665,1801.8,1801.4,6.39803325]
[1746418332144,0.7725,1802.1,1801.6,0.7914]
[1746418332346,0.7725,1802.1,1801.6,5.4094]
[1746418332548,0.29041799,1802.2,1801.8,0.7838]
[1746418332725,0.7935,1802.5,1801.9,0.0554907]
[1746418332928,1.6647777,1802.4,1801.9,0.0554907]
[1746418333868,2.090605,1802.4,1801.9,0.0554907]
[1746418335860,1.6647777,1802.4,1801.9,0.0554907]
[1746418336043,1.6647777,1802.4,1801.9,1.24938133]
[1746418336243,1.6647777,1802.4,1802.0,4.617]
[1746418337049,1.6647777,1802.4,1801.6,0.55]
[1746418337050,1.6647777,1802.2,1801.5,0.63980333]
[1746418337253,0.8223,1802.3,1800.7,3.75138702]
[1746418337254,0.8223,1801.5,1800.7,3.75138702]
[1746418337484,1.6647777,1801.3,1800.8,1.20106018]
[1746418337646,2.4870777,1801.5,1800.8,1.20106018]
[1746418337833,3.0,1801.4,1800.8,1.1455387]
[1746418338234,1.6647777,1801.3,1800.8,1.1455387]
[1746418338935,1.6647777,1801.3,1800.8,4.89692572]
[1746418339147,1.6647777,1801.3,1800.9,5.10769257]
[1746418339977,3.0,1801.4,1800.9,5.10769257]
[1746418340748,3.41911997,1801.4,1800.9,5.10769257]
[1746418341679,3.41911997,1801.4,1800.9,4.618]
[1746418341850,3.08737152,1801.2,1800.9,4.618]
[1746418342046,3.08737152,1801.4,1800.9,4.618]
[1746418345278,3.49483534,1801.4,1800.9,4.618]
[1746418353786,0.7999,1801.3,1800.9,4.618]
[1746418353969,1.22937353,1801.3,1800.9,4.618]
[1746418361707,1.66779767,1801.2,1800.9,4.618]
[1746418363609,1.22937353,1801.3,1800.8,0.7704]
[1746418363610,1.66779767,1801.0,1800.8,0.7704]
[1746418366124,1.95829196,1801.2,1800.8,0.7704]
[1746418374734,4.95829196,1801.2,1800.8,0.7704]
[1746418380935,1.95829196,1801.2,1800.8,0.7704]
[1746418382433,0.40746382,1801.4,1800.9,0.83342672]
[1746418382635,1.66779767,1801.5,1800.9,0.7779]
[1746418382812,1.95828047,1801.5,1801.0,0.8044]
[1746418383753,0.70009415,1801.5,1801.0,0.8044]
[1746418384050,0.8159,1801.8,1801.1,0.85991622]
[1746418384051,1.66779767,1801.8,1801.1,0.85991622]
[1746418384226,1.95825988,1801.8,1801.2,5.44629885]
[1746418384425,1.95825988,1801.8,1801.4,0.7715]
[1746418384934,0.29046221,1801.8,1801.4,0.7715]
[1746418385355,0.29046221,1801.8,1801.4,5.4305]
[1746418386724,0.29046221,1801.8,1801.4,4.659]
[1746418386916,0.29046221,1801.8,1801.5,0.7715]
[1746418387654,0.70182868,1801.8,1801.5,0.7715]
[1746418387949,0.29046221,1801.8,1801.5,0.7715]
[1746418388528,0.29046221,1801.8,1801.5,0.54305]
[1746418388726,1.66779767,1802.1,1801.6,0.827002]
[1746418388959,0.29043567,1802.2,1801.7,0.7715]
[1746418389170,0.29043567,1802.2,1801.9,0.7715]
[1746418389331,1.66779767,1802.4,1801.9,1.31445]
[1746418390427,1.66779767,1802.2,1801.9,1.31445]
[1746418391765,1.66779767,1802.2,1802.0,0.7995]
[1746418391962,1.66779767,1802.4,1802.0,0.7995]
[1746418392132,1.66779767,1802.4,1802.0,0.85498639]
[1746418393263,2.08702897,1802.4,1802.0,0.85498639]
[1746418394370,2.08702897,1802.4,1802.0,0.7995]
[1746418395660,1.66779767,1802.2,1802.0,0.7995]
[1746418397691,1.66779767,1802.4,1802.0,0.85498656]
[1746418397978,0.29044241,1802.5,1802.0,4.73028121]
[1746418398139,1.66779767,1802.6,1802.1,0.7669]
[1746418400293,2.08498396,1802.6,1802.1,0.7669]
[1746418401373,2.08498396,1802.6,1802.1,5.44169885]
[1746418401565,2.08498396,1802.6,1802.3,0.7947]
[1746418404683,1.66779767,1802.4,1802.2,1.37516988]
[1746418405770,1.66779767,1802.4,1802.1,4.67479885]
[1746418405978,1.66779767,1802.2,1802.1,4.67479885]
[1746418406179,1.66779767,1802.2,1802.0,0.8086]
[1746418408386,1.66779767,1802.1,1801.8,5.4353]
[1746418408589,1.66779767,1802.1,1801.8,6.44630989]
[1746418409382,1.66779767,1802.1,1801.8,5.4353]
[1746418416698,0.29048504,1802.2,1801.9,0.86769731]
[1746418416864,0.42726037,1802.3,1801.9,0.86769731]
[1746418417065,1.66779767,1802.4,1801.9,0.86769731]
[1746418418206,1.66779767,1802.4,1801.9,0.8122]
[1746418418498,1.66779767,1802.4,1801.9,1.35902]
[1746418419002,4.66779767,1802.4,1801.9,6.03381885]
[1746418419373,1.66779767,1802.4,1801.9,6.03381885]
[1746418420387,2.07718694,1802.4,1801.9,6.03381885]
[1746418421309,2.07718694,1802.4,1802.0,0.05548685]
[1746418421611,2.07718694,1802.4,1802.1,0.8114]
[1746418428928,0.8084,1802.7,1802.2,0.0554867]
[1746418429224,2.78942971,1802.9,1802.3,0.7649]
[1746418433228,3.21147382,1802.9,1802.3,0.7649]
[1746418433833,3.21147382,1802.9,1802.3,5.43969885]
[1746418433995,3.21147382,1802.9,1802.4,0.54396989]
[1746418434197,1.66779767,1802.7,1802.4,0.54396989]
[1746418436221,1.66779767,1802.8,1802.5,0.7505]
[1746418439234,1.66779767,1802.8,1802.4,1.32786989]
[1746418442935,0.7591,1802.7,1802.4,1.32786989]
[1746418443130,0.71247615,1802.9,1802.4,1.32786989]
[1746418443348,1.66779767,1802.8,1802.4,1.32786989]
[1746418446525,3.71247615,1802.9,1802.4,1.32786989]
[1746418446846,1.66779767,1802.8,1802.4,1.32786989]
[1746418448624,1.66779767,1802.8,1802.4,0.7839]
[1746418453441,2.44949767,1802.8,1802.4,0.7839]
[1746418454767,1.66779767,1802.6,1802.4,0.7839]
[1746418458081,1.66779767,1802.6,1802.3,4.67479885]
[1746418459446,0.772,1802.5,1802.3,4.67479885]
[1746418460795,1.66779767,1802.4,1802.3,4.67479885]
[1746418460962,1.66779767,1802.4,1802.2,4.654]
[1746418463606,2.07567409,1802.4,1802.2,4.654]
[1746418463888,2.3604415,1802.4,1802.2,4.654]
[1746418466006,5.3604415,1802.4,1801.9,5.4492]
[1746418466175,1.66779767,1802.2,1801.9,5.4492]
[1746418470711,0.8054,1802.3,1801.9,5.4492]
[1746418470907,5.3604415,1802.4,1801.9,5.4492]
[1746418470908,5.07567409,1802.4,1801.9,5.99966932]
[1746418471214,0.40787642,1802.4,1802.0,0.7725]
[1746418471508,1.9582845,1802.6,1802.0,0.7725]
[1746418471806,4.9582845,1802.6,1802.0,5.44729885]
[1746418472010,4.9582845,1802.6,1802.1,0.54472988]
[1746418472815,4.9582845,1802.6,1802.1,0.60021257]
[1746418473116,0.29048683,1802.6,1802.2,0.7652]
[1746418473276,0.29048683,1802.6,1802.4,0.7652]
[1746418474192,2.08984178,1802.9,1802.4,0.82067437]
[1746418474515,2.38029611,1802.9,1802.4,0.7652]
[1746418474811,5.38029611,1802.9,1802.4,0.7652]
[1746418476633,0.71249844,1802.9,1802.4,0.7652]
[1746418476924,0.42204411,1802.9,1802.6,0.7855]
[1746418477083,1.66779767,1803.1,1802.6,0.7855]
[1746418477828,5.08851684,1803.1,1802.6,0.7855]
[1746418486127,2.08851684,1803.1,1802.6,0.7855]
[1746418489827,2.08851684,1803.1,1802.6,1.33152989]
[1746418494439,2.08851684,1803.1,1802.6,0.54602989]
[1746418494602,2.08851684,1803.1,1802.7,0.768]
[1746418502451,0.95710515,1803.2,1802.7,0.82346614]
[1746418502753,0.66666667,1803.2,1802.8,0.7939]
[1746418503374,0.66666667,1803.2,1802.8,4.67479885]
[1746418503576,0.66666667,1803.2,1803.0,0.7701]
[1746418507538,0.66666667,1803.2,1803.1,0.81175274]
[1746418507827,0.66666667,1803.2,1803.1,0.7563]
[1746418508749,0.66666667,1803.2,1803.1,5.22479885]
[1746418508941,0.66666667,1803.2,1803.1,5.97529885]
[1746418509141,0.66666667,1803.2,1803.1,7.58823573]
[1746418515888,0.66666667,1803.2,1803.1,7.03823573]
[1746418526902,0.66666667,1803.2,1803.1,7.09368503]
[1746418527498,0.66666667,1803.2,1803.1,7.03823573]
[1746418528866,0.66666667,1803.2,1803.1,5.42529885]
[1746418529198,0.66666667,1803.2,1803.1,4.67479885]
[1746418533104,0.66666667,1803.2,1803.1,9.28179885]
[1746418534874,1.33333334,1803.2,1803.1,9.28179885]
[1746418536474,1.33333334,1803.2,1803.1,10.06499885]
[1746418536671,1.33333334,1803.2,1803.1,11.07704371]
[1746418541691,1.33333334,1803.2,1803.1,9.28179885]
[1746418542519,0.66666667,1803.2,1803.1,9.28179885]
[1746418544895,0.66666667,1803.2,1803.1,10.05859885]
[1746418546225,0.66666667,1803.2,1803.1,9.28179885]
[1746418556602,0.66666667,1803.2,1803.1,15.58720295]
[1746418556804,0.25,1803.2,1803.1,17.69592325]
[1746418557532,0.13718167,1803.2,1803.1,20.69592325]
[1746418558064,0.7779,1804.1,1803.7,0.8012]
[1746418558333,0.7779,1804.1,1803.8,4.66242922]
[1746418561235,0.7779,1804.1,1803.8,4.607]
[1746418561420,0.7779,1804.1,1803.8,5.61260981]
[1746418561624,2.44569767,1804.1,1803.8,5.61260981]
[1746418562540,2.44569767,1804.1,1803.8,4.607]
[1746418562541,1.66779767,1803.9,1803.8,4.607]
[1746418562747,2.47579767,1803.9,1803.8,4.607]
[1746418562949,0.808,1803.9,1803.8,4.607]
[1746418567116,2.47579767,1803.9,1803.8,4.607]
[1746418577665,2.47579767,1803.9,1803.6,5.429]
[1746418577832,2.47579767,1803.9,1803.6,5.97744394]
[1746418578755,2.47579767,1803.9,1803.6,5.15344394]
[1746418582036,0.808,1803.9,1803.6,5.15344394]
[1746418582237,1.66779767,1804.1,1803.8,0.8245]
[1746418582238,0.8038,1804.1,1803.8,0.8245]
[1746418582543,0.8038,1804.1,1803.6,5.97794394]
[1746418582761,0.8038,1804.1,1803.7,0.59779439]
[1746418586385,0.8038,1804.1,1803.7,5.24569248]
[1746418590209,1.66779767,1804.0,1803.7,5.24569248]
[1746418592089,1.66779767,1804.0,1803.7,0.59779439]
[1746418592289,1.66779767,1804.0,1803.6,4.605]
[1746418596897,1.66779767,1804.0,1803.7,4.604]
[1746418598905,2.47159767,1804.1,1803.7,5.4313]
[1746418599102,2.47159767,1804.1,1803.8,0.54313]
[1746418599299,0.8038,1804.1,1803.8,0.54313]
[1746418599805,1.95810481,1804.3,1803.8,0.54313]
[1746418600101,0.8027,1804.5,1804.0,0.8273]
[1746418600274,0.8027,1804.5,1804.1,4.65942099]
[1746418600475,0.8027,1804.5,1804.2,0.4659421]
[1746418603106,2.47049767,1804.5,1804.2,0.4659421]
[1746418603487,0.2903735,1804.8,1804.4,0.753]
[1746418603692,0.7918,1805.2,1804.5,4.65941368]
[1746418603894,1.66779767,1805.1,1804.7,0.753]
[1746418604196,1.66779767,1805.1,1804.7,0.80840416]
[1746418604709,1.66779767,1805.1,1804.7,0.753]
[1746418604911,1.66779767,1805.1,1804.7,0.80840416]
[1746418605400,1.66779767,1804.9,1804.6,0.46594137]
[1746418607982,0.7575,1805.0,1804.6,0.46594137]
[1746418608186,2.42529767,1805.0,1804.6,0.52134797]
[1746418608384,2.42529767,1805.0,1804.6,0.46594137]
[1746418608598,2.42529767,1805.0,1804.6,0.52134796]
[1746418608798,2.42529767,1805.0,1804.6,0.46594137]
[1746418608994,0.29031383,1805.2,1804.7,0.8052]
[1746418609307,1.66779767,1805.2,1804.7,0.8052]
[1746418612810,1.66779767,1805.2,1804.7,5.45309809]
[1746418613014,1.66779767,1805.2,1804.8,0.54530981]
[1746418613329,2.42009767,1805.0,1804.9,4.602]
[1746418614314,1.66779767,1805.0,1804.9,4.602]
[1746418614817,3.69831861,1805.5,1804.9,4.602]
[1746418614818,1.66779767,1805.3,1804.9,4.602]
[1746418621783,0.7974,1805.2,1804.9,4.602]
[1746418621998,1.66779767,1805.1,1804.9,4.602]
[1746418622324,1.66779767,1805.1,1804.9,5.14105]
[1746418624028,1.66779767,1805.1,1804.9,0.53905]
[1746418624207,1.66779767,1805.1,1804.8,4.614]
[1746418625658,1.66779767,1804.9,1804.8,4.614]
[1746418625845,1.66779767,1804.9,1804.3,4.64789809]
[1746418626151,1.66779767,1804.6,1804.4,4.614]
[1746418631466,0.7765,1804.5,1804.1,4.614]
[1746418631767,1.66779767,1804.4,1804.2,0.4614]
[1746418632463,1.66779767,1804.4,1804.1,4.614]
[1746418634067,0.8063,1804.3,1804.1,4.614]
[1746418634367,1.66779767,1804.2,1804.1,4.614]
[1746418635251,1.66779767,1804.2,1803.9,4.64789809]
[1746418636769,0.7576,1804.1,1803.9,4.64789809]
[1746418636979,1.66779767,1804.0,1803.8,4.615]
[1746418638648,0.7576,1804.1,1803.8,4.615]
[1746418638857,2.44349767,1804.3,1803.9,0.7934]
[1746418639950,2.73385985,1804.3,1803.9,0.7934]
[1746418640583,1.95815985,1804.3,1803.9,0.7934]
[1746418641589,2.47109767,1804.1,1803.8,5.08204359]
[1746418642149,2.47109767,1804.1,1803.8,4.615]
[1746418642956,1.66779767,1803.9,1803.8,4.615]
[1746418643482,1.66779767,1803.9,1803.6,4.64789809]
[1746418645489,1.66779767,1803.9,1803.6,4.70333674]
[1746418645668,0.8033,1804.1,1803.6,4.70333674]
[1746418645669,2.47109767,1804.1,1803.6,4.70333674]
[1746418645870,2.47109767,1804.1,1803.6,7.54596041]
[1746418647089,2.47109767,1804.1,1803.7,0.7673]
[1746418647409,0.29036218,1804.3,1803.7,0.7673]
[1746418647410,1.95815985,1804.3,1803.8,0.05543854]
[1746418652318,0.29036218,1804.3,1803.9,0.8073]
[1746418652523,2.43189767,1804.5,1804.0,0.05542526]
[1746418652720,2.43189767,1804.5,1804.0,0.60269779]
[1746418652721,5.43189767,1804.5,1804.0,0.60269779]
[1746418653713,1.66779767,1804.3,1804.0,0.60269779]
[1746418655153,1.66779767,1804.4,1804.0,0.60269779]
[1746418657651,1.66779767,1804.4,1804.0,0.54727253]
[1746418659053,1.66779767,1804.2,1804.0,0.54727253]
[1746418659427,1.66779767,1804.2,1803.9,4.61]
[1746418661674,1.66779767,1804.0,1803.9,4.61]
[1746418661834,2.47909767,1804.0,1803.9,4.61]
[1746418662428,2.47909767,1804.0,1803.6,4.609]
[1746418662632,2.47909767,1804.0,1803.5,0.762]
[1746418669663,2.47909767,1804.0,1803.5,1.30298981]
[1746418674470,1.95817567,1804.1,1803.5,1.30298981]
[1746418674673,0.8263,1804.2,1803.6,0.83643843]
[1746418674975,5.75810241,1804.4,1803.7,5.3837]
[1746418675162,5.75810241,1804.4,1803.8,5.18626809]
[1746418676383,2.75810241,1804.4,1803.9,0.7737]
[1746418682261,2.46769767,1804.4,1803.9,0.7737]
[1746418685686,1.66779767,1804.2,1803.8,5.18626809]
[1746418685846,0.7864,1804.1,1803.8,5.18626809]
[1746418686195,0.7864,1804.1,1803.9,0.51862681]
[1746418686377,0.7864,1804.1,1803.8,5.18626809]
[1746418687385,0.7864,1804.1,1803.8,5.2417001]
[1746418687752,0.7864,1804.1,1803.8,5.18626809]
[1746418689196,0.7864,1804.1,1803.8,4.64789809]
[1746418689999,1.66779767,1804.0,1803.8,4.64789809]
[1746418690207,1.66779767,1804.0,1803.7,4.61]
[1746418690407,1.66779767,1803.8,1803.7,4.61]
[1746418690910,0.8023,1803.9,1803.7,4.61]
[1746418698273,0.799,1804.0,1803.7,5.54133365]
[1746418698606,0.799,1804.2,1803.7,5.59676882]
[1746418699907,0.799,1804.2,1803.7,6.42336882]
[1746418700411,0.799,1804.2,1803.7,6.36793365]
[1746418700570,0.799,1804.2,1803.7,11.01583174]
[1746418700770,0.799,1804.2,1803.8,1.10158317]
[1746418704406,1.66779767,1804.3,1803.8,1.10158317]
[1746418704608,1.66779767,1804.3,1803.9,0.8266]
[1746418706499,1.66779767,1804.3,1803.9,5.47449809]
[1746418707015,1.66779767,1804.3,1803.9,10.07849809]
[1746418707199,1.66779767,1804.3,1804.0,1.00784981]
[1746418711016,2.45569767,1804.5,1804.0,1.00784981]
[1746418713325,2.49999767,1804.7,1804.1,5.51082145]
[1746418713506,2.49999767,1804.7,1804.1,5.45539809]
[1746418713714,2.49999767,1804.7,1804.2,0.54553981]
[1746418713715,1.66779767,1804.5,1804.2,0.54553981]
[1746418724236,1.66779767,1804.3,1804.1,4.64789809]
[1746418727036,1.66779767,1804.3,1803.9,5.3761]
[1746418735464,2.42409767,1804.5,1804.0,0.05542392]
[1746418736565,2.42409767,1804.5,1803.9,5.3761]
[1746418736764,2.42409767,1804.5,1804.0,4.603]
[1746418741369,2.71455874,1804.5,1804.0,4.603]
[1746418741575,1.66779767,1804.1,1804.0,4.603]
[1746418741742,2.47429767,1804.1,1803.7,4.603]
[1746418745758,2.47429767,1804.1,1803.8,0.05543285]
[1746418746271,1.66779767,1804.4,1803.8,0.52127613]
[1746418746572,0.7985,1804.3,1803.8,1.27724328]
[1746418747778,0.7985,1804.3,1803.8,5.92514137]
[1746418749872,0.7985,1804.3,1803.9,4.602]
[1746418750058,0.7985,1804.3,1804.0,0.4602]
[1746418750246,1.06436107,1804.5,1804.1,0.82802537]
[1746418750451,0.29046107,1804.5,1804.1,5.47592346]
[1746418750839,0.7739,1804.7,1804.1,5.47591237]
[1746418751039,0.7739,1804.7,1804.1,5.42049809]